bitfinex-derivatives/quotes_BNBF0:USTF0_20250807
["timestamp","ask_amount","ask_price","bid_price","bid_amount"]
[1754531990289,0.86988916,770.82,770.01,0.917]
[1754531990589,0.86988916,770.81,770.01,0.917]
[1754531991190,0.86988916,770.79,770.01,0.917]
[1754531991595,0.86988916,770.8,770.01,0.917]
[1754531992892,0.86988916,770.75,770.01,0.917]
[1754531994295,0.86988916,770.81,770.02,0.87458063]
[1754531995109,0.86988916,770.81,770.01,1.79158063]
[1754531996200,0.86988916,770.71,770.08,0.87458063]
[1754531998197,0.86988916,770.71,770.07,0.87458063]
[1754531998601,0.86988916,770.72,770.07,0.87458063]
[1754531999096,0.86988916,770.71,770.06,0.87458063]
[1754531999297,0.86988916,770.71,769.9,1.1621071]
[1754531999298,0.86988916,770.7,770.05,0.87458063]
[1754532000196,0.86988916,770.71,770.05,0.87458063]
[1754532000700,0.86988916,770.7,770.04,0.87458063]
[1754532000901,0.86988916,770.67,770.01,0.87458063]
[1754532001099,0.86988916,770.67,770.02,1.082]
[1754532001398,0.86988916,770.64,770.02,1.082]
[1754532001804,0.86988916,770.62,770.02,1.082]
[1754532002003,0.86988916,770.61,770.02,1.082]
[1754532002404,0.86988916,770.55,770.02,1.082]
[1754532003107,0.86988916,770.54,770.02,1.082]
[1754532003405,0.86988916,770.53,770.02,1.082]
[1754532004001,0.86988916,770.52,770.02,1.082]
[1754532004500,0.86988916,770.51,770.02,1.082]
[1754532005803,0.86988916,770.53,770.02,1.082]
[1754532009008,0.86988916,770.54,770.02,1.082]
[1754532009307,0.86988916,770.58,770.02,1.082]
[1754532009808,0.86988916,770.59,770.02,1.082]
[1754532010505,0.86988916,770.61,770.02,1.082]
[1754532011009,0.86988916,770.63,770.02,1.082]
[1754532011409,0.86988916,770.62,770.02,1.082]
[1754532012107,0.86988916,770.63,770.02,1.082]
[1754532012906,0.22571826,771.27,770.02,1.082]
[1754532012907,0.86988916,770.62,770.02,1.082]
[1754532013411,0.86988916,770.55,770.02,1.082]
[1754532013606,0.86988916,770.52,770.02,1.082]
[1754532014207,0.86988916,770.53,770.02,1.082]
[1754532016413,0.86988916,770.54,770.02,1.082]
[1754532017517,0.86922536,770.54,770.02,1.082]
[1754532018014,0.86922536,770.52,770.02,1.082]
[1754532018816,0.86922536,770.48,770.02,1.082]
[1754532020422,0.86922536,770.43,770.02,1.082]
[1754532020816,0.86922536,770.49,770.02,1.082]
[1754532021015,0.86922536,770.47,770.02,1.082]
[1754532022321,0.86922536,770.48,770.02,1.082]
[1754532023922,0.86922536,770.41,770.02,1.082]
[1754532024222,0.86922536,770.42,770.02,1.082]
[1754532025322,0.86922536,770.43,770.02,1.082]
[1754532025922,0.86922536,770.36,770.02,1.082]
[1754532026323,0.86922536,770.37,770.02,1.082]
[1754532027420,0.86922536,770.38,770.02,1.082]
[1754532027723,0.86922536,770.34,770.02,1.082]
[1754532027920,0.86922536,770.32,770.02,1.082]
[1754532028424,0.22571826,771.27,770.02,1.082]
[1754532028425,0.86922536,770.33,770.02,1.082]
[1754532028820,0.86922536,770.34,770.02,1.082]
[1754532029225,0.86922536,770.35,770.02,1.082]
[1754532030225,0.86922536,770.36,770.02,1.082]
[1754532031226,0.86922536,770.37,770.02,1.082]
[1754532031626,0.86922536,770.38,770.02,1.082]
[1754532032227,0.86922536,770.37,770.02,1.082]
[1754532032622,0.86922536,770.34,770.02,1.082]
[1754532032925,0.86922536,770.31,770.02,1.082]
[1754532033125,0.86922536,770.33,770.02,1.082]
[1754532033422,0.86922536,770.34,770.02,1.082]
[1754532034522,0.86922536,770.32,770.02,1.082]
[1754532034724,0.86922536,770.38,770.02,1.082]
[1754532034923,0.86922536,770.41,770.02,1.082]
[1754532035128,0.86922536,770.4,770.02,1.082]
[1754532035324,0.86922536,770.39,770.02,1.082]
[1754532035528,0.86922536,770.42,770.02,1.082]
[1754532036124,0.86922536,770.41,770.02,1.082]
[1754532036329,0.86922536,770.41,769.49,1.10010886]
[1754532036530,0.86922536,770.42,769.49,0.22594688]
[1754532036829,0.86922536,770.41,769.49,0.22594688]
[1754532037029,0.86922536,770.4,769.49,0.22594688]
[1754532037230,0.86922536,770.39,769.49,0.22594688]
[1754532037636,0.86922536,770.4,769.49,0.22594688]
[1754532037829,0.22592048,770.44,769.49,0.22594688]
[1754532037830,0.86922536,770.35,769.49,0.22594688]
[1754532038032,0.86922536,770.36,769.49,0.22594688]
[1754532038427,0.86922536,770.37,769.49,0.22594688]
[1754532039429,0.86922536,770.37,769.5,0.861]
[1754532039835,0.86922536,770.38,769.5,0.861]
[1754532040134,0.86922536,770.39,769.5,0.861]
[1754532040332,0.22592048,770.44,769.5,0.861]
[1754532042233,0.86922536,770.41,769.5,0.861]
[1754532042430,1.09514584,770.44,769.5,0.861]
[1754532043236,0.22592048,770.44,769.5,0.861]
[1754532043435,0.86922536,770.4,769.5,0.861]
[1754532044235,0.86922536,770.39,769.5,0.861]
[1754532044933,0.86922536,770.38,769.5,0.861]
[1754532045334,0.86922536,770.39,769.5,0.861]
[1754532048336,0.86922536,770.4,769.5,0.861]
[1754532049137,0.86922536,770.42,769.5,0.861]
[1754532049336,0.22592048,770.44,769.5,0.861]
[1754532052944,1.09514584,770.44,769.5,0.861]
[1754532053143,0.86922536,770.43,769.5,0.861]
[1754532053440,0.86922536,770.42,769.5,0.861]
[1754532055141,0.86922536,770.41,769.5,0.861]
[1754532056142,0.86922536,770.4,769.5,0.861]
[1754532056447,0.86922536,770.36,769.5,0.861]
[1754532056641,0.86922536,770.35,769.5,0.861]
[1754532057444,0.86922536,770.34,769.5,0.861]
[1754532057944,0.86922536,770.35,769.5,0.861]
[1754532058146,0.86922536,770.34,769.5,0.861]
[1754532058950,0.86922536,770.32,769.5,0.861]
[1754532059646,0.86922536,770.32,769.49,0.22594688]
[1754532060549,0.86922536,770.34,769.49,1.10010886]
[1754532061249,0.22592048,770.44,769.49,1.10010886]
[1754532061250,0.86922536,770.33,769.49,0.22594688]
[1754532061450,0.86922536,770.33,769.49,1.10010886]
[1754532062249,0.86922536,770.36,769.49,0.22594688]
[1754532062651,0.86922536,770.36,769.5,1.183]
[1754532063251,0.86922536,770.35,769.5,1.183]
[1754532063548,0.86922536,770.41,769.5,1.183]
[1754532063745,0.86922536,770.4,769.5,1.183]
[1754532064251,0.86922536,770.39,769.5,1.183]
[1754532065152,0.22592048,770.44,769.5,1.183]
[1754532065153,0.86922536,770.38,769.5,1.183]
[1754532065449,0.86922536,770.35,769.5,1.183]
[1754532065949,0.86922536,770.31,769.5,1.183]
[1754532067154,0.86922536,770.3,769.5,1.183]
[1754532067552,0.86922536,770.32,769.5,1.183]
[1754532067850,0.86922536,770.08,769.5,1.183]
[1754532068156,0.86922536,770.06,769.5,1.183]
[1754532068456,0.86922536,770.05,769.5,1.183]
[1754532069051,0.86922536,770.03,769.5,1.183]
[1754532069255,0.86922536,770.04,769.5,1.183]
[1754532069457,0.86922536,769.96,769.5,1.183]
[1754532069756,0.86922536,769.9,769.5,1.183]
[1754532070158,0.86922536,769.87,769.5,1.183]
[1754532070358,0.86922536,769.82,769.5,1.183]
[1754532070655,0.86922536,769.75,769.5,1.183]
[1754532070955,0.86922536,769.76,769.5,1.183]
[1754532071255,0.86922536,769.9,769.5,1.183]
[1754532071453,0.86922536,769.89,769.5,1.183]
[1754532071958,0.86922536,769.9,769.5,1.183]
[1754532072155,0.22592048,770.44,769.5,1.183]
[1754532072156,0.86922536,769.85,769.5,1.183]
[1754532072460,0.86922536,769.97,769.5,1.183]
[1754532072657,0.86922536,770.06,769.5,1.183]
[1754532072958,0.86922536,770.09,769.5,1.183]
[1754532073158,0.86922536,770.24,769.5,1.183]
[1754532073455,0.86922536,770.4,769.5,1.183]
[1754532073656,0.86922536,770.39,769.5,1.183]
[1754532074556,0.86922536,770.38,769.5,1.183]
[1754532074756,0.86922536,770.41,769.5,1.183]
[1754532074956,0.86922536,770.35,769.5,1.183]
[1754532075655,0.86922536,770.33,769.5,1.183]
[1754532076059,0.86922536,770.29,769.5,1.183]
[1754532077158,0.86922536,770.25,769.5,1.183]
[1754532077357,0.22592048,770.44,769.5,1.183]
[1754532077358,0.86922536,770.14,769.5,1.183]
[1754532077561,0.86922536,770.21,769.5,1.183]
[1754532077762,0.86922536,770.22,769.5,1.183]
[1754532078058,0.86922536,770.32,769.5,1.183]
[1754532078262,0.86922536,770.31,769.5,1.183]
[1754532080462,0.86922536,770.3,769.5,1.183]
[1754532081763,0.86922536,770.29,769.5,1.183]
[1754532081960,0.86922536,770.28,769.5,1.183]
[1754532083364,0.86922536,770.27,769.5,1.183]
[1754532083664,0.86922536,770.26,769.5,1.183]
[1754532085165,0.86922536,770.27,769.5,1.183]
[1754532085365,0.86922536,770.26,769.5,1.183]
[1754532085561,0.86922536,770.27,769.5,1.183]
[1754532087065,0.86922536,770.28,769.5,1.183]
[1754532087466,0.86922536,770.23,769.5,1.183]
[1754532087667,0.86922536,770.25,769.5,1.183]
[1754532087868,0.86922536,770.24,769.5,1.183]
[1754532088065,0.86922536,770.23,769.5,1.183]
[1754532088368,0.86922536,770.19,769.5,1.183]
[1754532088869,0.86922536,770.18,769.5,1.183]
[1754532089168,0.86922536,770.14,769.5,1.183]
[1754532089365,0.86922536,770.12,769.5,1.183]
[1754532091267,0.86922536,770.11,769.5,1.183]
[1754532091469,0.86922536,770.12,769.5,1.183]
[1754532093269,1.1634231,770.27,769.5,1.183]
[1754532093270,0.86922536,770.14,769.5,1.183]
[1754532093870,0.86922536,770.16,769.5,1.183]
[1754532094068,0.86922536,770.15,769.5,1.183]
[1754532095574,0.86922536,770.16,769.5,1.183]
[1754532095868,0.86922536,770.15,769.5,1.183]
[1754532096373,0.86922536,770.14,769.5,1.183]
[1754532096667,0.86922536,770.15,769.5,1.183]
[1754532097273,0.86922536,770.14,769.5,1.183]
[1754532097870,0.86922536,770.15,769.5,1.183]
[1754532098074,0.86922536,770.14,769.5,1.183]
[1754532098774,0.86922536,770.13,769.5,1.183]
[1754532098971,0.86922536,770.14,769.5,1.183]
[1754532099870,0.86922536,770.15,769.5,1.183]
[1754532100175,0.86922536,770.14,769.5,1.183]
[1754532100673,0.86922536,770.15,769.29,0.87416198]
[1754532100875,0.86922536,770.14,769.29,0.87416198]
[1754532101672,0.86922536,770.14,769.3,0.87416198]
[1754532102972,0.86922536,770.14,769.31,0.75]
[1754532103777,0.86922536,770.11,769.32,0.87416198]
[1754532104072,0.86922536,770.12,769.34,0.87416198]
[1754532106473,0.86922536,770.15,769.32,0.87416198]
[1754532106973,0.86922536,770.14,769.32,0.87416198]
[1754532108874,0.86922536,770.13,769.31,1.62416198]
[1754532109172,0.86922536,770.12,769.31,1.62416198]
[1754532109774,0.86922536,770.11,769.31,1.62416198]
[1754532112388,0.86922536,770.11,769.32,0.87416198]
[1754532112888,0.86922536,770.13,769.33,0.87416198]
[1754532113085,0.86922536,770.12,769.33,0.87416198]
[1754532113789,0.86922536,770.13,769.34,0.87416198]
[1754532114289,0.86922536,770.18,769.34,0.87416198]
[1754532114484,1.1634231,770.35,769.17,1.1621071]
[1754532114689,0.86839014,770.21,769.38,0.8729925]
[1754532114885,0.86839014,770.25,769.42,0.8729925]
[1754532115289,0.86839014,770.24,769.41,0.8729925]
[1754532115490,0.86839014,770.25,769.41,0.8729925]
[1754532116287,0.86839014,770.25,769.42,0.8729925]
[1754532116584,0.86839014,770.31,769.46,0.8729925]
[1754532117091,0.86839014,770.31,769.47,0.834]
[1754532119993,0.86839014,770.3,769.47,1.7069925]
[1754532120793,0.86839014,770.31,769.47,1.7069925]
[1754532121593,0.86839014,770.34,769.47,1.7069925]
[1754532121793,0.86839014,770.35,769.48,0.8729925]
[1754532122190,0.86839014,770.36,769.48,0.8729925]
[1754532122889,0.86839014,770.36,769.47,1.7069925]
[1754532123089,0.86839014,770.4,769.48,0.8729925]
[1754532123291,0.86839014,770.4,769.47,1.7069925]
[1754532124094,0.86839014,770.41,769.47,1.7069925]
[1754532124296,0.86839014,770.41,769.47,0.834]
[1754532124698,0.86839014,770.4,769.47,1.7069925]
[1754532125198,0.86839014,770.4,769.47,0.834]
[1754532125495,0.86839014,770.39,769.47,0.834]
[1754532129298,0.86839014,770.38,769.47,0.834]
[1754532129799,0.86839014,770.39,769.47,1.7069925]
[1754532130302,0.86839014,770.37,769.48,0.8729925]
[1754532131301,0.86839014,770.35,769.5,0.8729925]
[1754532132000,0.86839014,770.34,769.51,0.8729925]
[1754532132201,0.86839014,770.35,769.51,0.8729925]
[1754532132400,0.86839014,770.34,769.52,0.8729925]
[1754532132705,0.86839014,770.37,769.5,0.8729925]
[1754532133004,0.86839014,770.36,769.5,0.8729925]
[1754532133200,0.86839014,770.36,769.49,0.8729925]
[1754532133398,0.86839014,770.36,769.5,0.8729925]
[1754532133601,0.86839014,770.35,769.49,0.8729925]
[1754532136707,0.86839014,770.37,769.51,0.8729925]
[1754532138911,0.22592048,770.44,769.51,0.8729925]
[1754532138912,0.86839014,770.38,769.51,0.8729925]
[1754532139513,0.86839014,770.43,769.48,0.8729925]
[1754532139713,1.09433776,770.55,769.6,0.8729925]
[1754532139912,0.86839014,770.54,769.59,0.8729925]
[1754532140412,1.09433776,770.55,769.59,0.8729925]
[1754532140813,1.09433776,770.55,769.58,0.8729925]
[1754532141013,1.09433776,770.55,769.59,0.8729925]
[1754532141211,1.09433776,770.55,769.58,0.8729925]
[1754532142313,0.22594762,770.55,769.58,0.8729925]
[1754532143414,0.22594762,770.55,769.59,0.8729925]
[1754532144124,1.09433776,770.55,769.56,0.8729925]
[1754532144715,1.09433776,770.55,769.47,0.834]
[1754532144716,1.09433776,770.55,769.55,0.8729925]
[1754532145017,0.86839014,770.54,769.55,0.8729925]
[1754532145217,1.09433776,770.55,769.54,0.8729925]
[1754532145420,0.86839014,770.54,769.54,0.8729925]
[1754532145920,0.22594762,770.55,769.55,0.8729925]
[1754532146619,0.22594762,770.55,769.54,0.8729925]
[1754532146820,0.86839014,770.54,769.54,0.8729925]
[1754532147018,0.86839014,770.54,769.53,0.8729925]
[1754532147816,1.09433776,770.55,769.52,0.8729925]
[1754532148321,1.09433776,770.55,769.51,0.8729925]
[1754532149418,0.86839014,770.5,769.55,0.8729925]
[1754532151121,0.86839014,770.49,769.55,0.8729925]
[1754532151724,0.86839014,770.48,769.55,0.8729925]
[1754532153219,0.86839014,770.49,769.55,0.8729925]
[1754532153521,0.86839014,770.46,769.51,0.8729925]
[1754532153921,0.86839014,770.45,769.5,0.8729925]
[1754532154126,0.86839014,770.45,769.51,0.8729925]
[1754532154722,0.22594762,770.55,769.03,0.22609074]
[1754532154723,0.86839014,770.46,769.52,0.8729925]
[1754532157229,0.86839014,770.45,769.52,0.8729925]
[1754532157529,0.86839014,770.45,769.53,1.031]
[1754532157835,0.86839014,770.42,769.54,0.8729925]
[1754532159232,0.86839014,770.42,769.55,0.8729925]
[1754532161133,0.86839014,770.41,769.55,0.8729925]
[1754532162036,0.22594762,770.55,769.53,1.031]
[1754532162037,0.86839014,770.4,769.56,0.8729925]
[1754532162231,0.86839014,770.4,769.57,0.8729925]
[1754532162430,0.86839014,770.36,769.53,1.9039925]
[1754532162629,0.86839014,770.35,769.53,1.9039925]
[1754532163031,0.86839014,770.28,769.57,0.8729925]
[1754532163232,0.86839014,770.28,769.58,0.8729925]
[1754532163431,0.86839014,770.29,769.57,0.8729925]
[1754532164437,0.86839014,770.3,769.58,0.8729925]
[1754532165034,0.86839014,770.29,769.57,0.8729925]
[1754532165239,0.86839014,770.28,769.58,0.8729925]
[1754532165740,0.86839014,770.28,769.57,0.8729925]
[1754532166237,0.86839014,770.27,769.58,0.8729925]
[1754532166537,0.86839014,770.25,769.59,0.8729925]
[1754532167741,0.86839014,770.28,769.57,0.8729925]
[1754532168240,0.86839014,770.27,769.58,0.8729925]
[1754532169238,0.86839014,770.27,769.53,1.031]
[1754532169239,0.86839014,770.27,769.59,0.8729925]
[1754532169746,0.86839014,770.27,769.58,0.8729925]
[1754532170445,0.86839014,770.21,769.54,0.8729925]
[1754532171346,0.86839014,770.29,769.53,1.031]
[1754532173348,0.86839014,770.28,769.53,1.031]
[1754532173643,0.86839014,770.27,769.53,1.031]
[1754532174143,0.86839014,770.25,769.53,1.031]
[1754532174347,1.1634231,770.45,769.53,1.031]
[1754532174348,0.86839014,770.24,769.53,1.031]
[1754532174549,0.86839014,770.2,769.53,1.031]
[1754532175247,0.86839014,770.21,769.53,1.031]
[1754532179255,0.86839014,770.22,769.53,1.031]
[1754532179455,0.86839014,770.22,769.43,0.8729925]
[1754532181056,0.86839014,770.21,769.43,0.8729925]
[1754532181251,0.86839014,770.14,769.48,0.8729925]
[1754532181455,0.86839014,770.14,769.47,0.8729925]
[1754532181952,0.86839014,770.11,769.49,0.8729925]
[1754532182152,0.86839014,770.1,769.48,0.8729925]
[1754532182356,0.86839014,770.08,769.5,0.819]
[1754532182556,0.86839014,770.03,769.5,0.819]
[1754532183559,0.86839014,770.04,769.5,0.819]
[1754532184058,0.86839014,770.03,769.5,0.819]
[1754532184259,0.86839014,770.04,769.5,0.819]
[1754532185260,0.86839014,770.05,769.5,0.819]
[1754532186259,0.86839014,770.18,769.5,0.819]
[1754532186461,0.86839014,770.19,769.5,0.819]
[1754532188463,0.86839014,770.2,769.5,0.819]
[1754532189462,0.86839014,770.21,769.5,0.819]
[1754532192169,0.86839014,770.23,769.5,0.819]
[1754532194268,0.86839014,770.24,769.5,0.819]
[1754532194674,0.86839014,770.3,769.5,0.819]
[1754532196075,0.86839014,770.22,769.5,0.819]
[1754532199374,0.22594762,770.55,769.5,0.819]
[1754532199375,0.86839014,770.21,769.5,0.819]
[1754532201785,0.86839014,770.17,769.5,0.819]
[1754532202884,0.86839014,770.16,769.5,0.819]
[1754532204285,0.86839014,770.15,769.5,0.819]
[1754532204585,0.86839014,770.13,769.5,0.819]
[1754532204985,0.86839014,770.19,769.5,0.819]
[1754532206184,0.86839014,770.18,769.5,0.819]
[1754532209191,0.86839014,770.24,769.5,0.819]
[1754532210492,0.86839014,770.23,769.5,0.819]
[1754532211598,0.86839014,770.16,769.5,0.819]
[1754532214703,0.86839014,770.15,769.5,0.819]
[1754532215302,0.86839014,770.14,769.5,0.819]
[1754532215703,0.86839014,770.15,769.5,0.819]
[1754532216202,0.86839014,770.14,769.5,0.819]
[1754532216799,0.86839014,770.15,769.5,0.819]
[1754532217097,0.86839014,770.16,769.5,0.819]
[1754532217298,0.86839014,770.15,769.5,0.819]
[1754532217904,0.86839014,770.11,769.5,0.819]
[1754532218304,0.86839014,770.1,769.5,0.819]
[1754532219201,0.86839014,770.11,769.5,0.819]
[1754532219902,0.86839014,770.1,769.5,0.819]
[1754532220406,0.86839014,770.11,769.5,0.819]
[1754532220705,0.86839014,770.1,769.5,0.819]
[1754532221711,0.86839014,770.11,769.5,0.819]
[1754532221906,0.86839014,770.13,769.5,0.819]
[1754532222103,0.86839014,770.16,769.5,0.819]
[1754532222406,0.86839014,770.18,769.5,0.819]
[1754532223304,0.86839014,770.17,769.5,0.819]
[1754532223507,0.22594762,770.55,769.56,0.8729925]
[1754532223508,0.86839014,770.25,769.56,0.8729925]
[1754532225002,0.86839014,770.25,769.55,0.8729925]
[1754532225303,0.86839014,770.25,769.5,0.819]
[1754532225304,0.86839014,770.25,769.56,0.8729925]
[1754532225606,0.86839014,770.27,769.57,0.8729925]
[1754532225806,0.86839014,770.28,769.56,0.8729925]
[1754532226204,0.86839014,770.29,769.57,0.8729925]
[1754532226506,0.86839014,770.27,769.58,0.8729925]
[1754532226704,0.86839014,770.33,769.54,0.8729925]
[1754532227108,0.86839014,770.31,769.53,0.8729925]
[1754532227705,0.86839014,770.3,769.53,0.8729925]
[1754532229215,0.86839014,770.29,769.53,0.8729925]
[1754532229414,0.86839014,770.3,769.53,0.8729925]
[1754532230219,0.86839014,770.3,769.54,0.8729925]
[1754532230414,0.86839014,770.29,769.53,0.8729925]
[1754532232822,0.86839014,770.3,769.54,0.8729925]
[1754532234625,0.86839014,770.29,769.53,0.8729925]
[1754532234818,0.86839014,770.3,769.52,0.8729925]
[1754532235618,0.86839014,770.29,769.52,0.8729925]
[1754532236616,0.86839014,770.24,769.56,0.8729925]
[1754532239317,0.86839014,770.25,769.56,0.8729925]
[1754532239522,0.86839014,770.24,769.55,0.8729925]
[1754532241219,0.86839014,770.25,769.56,0.8729925]
[1754532241430,0.86839014,770.27,769.57,0.8729925]
[1754532242225,0.86839014,770.35,769.56,0.8729925]
[1754532242525,0.86839014,770.36,769.56,0.8729925]
[1754532242924,0.86839014,770.37,769.56,0.8729925]
[1754532243224,0.86839014,770.39,769.58,0.8729925]
[1754532245121,0.86839014,770.39,769.59,0.896]
[1754532245322,0.86839014,770.4,769.59,0.896]
[1754532248032,0.86839014,770.39,769.59,0.896]
[1754532249327,0.86839014,770.4,769.59,0.896]
[1754532251329,0.86839014,770.36,769.59,1.7689925]
[1754532252026,0.86839014,770.33,769.61,0.8729925]
[1754532252527,0.86839014,770.35,769.59,1.7689925]
[1754532253026,0.86839014,770.34,769.61,0.8729925]
[1754532253330,0.86839014,770.33,769.61,0.8729925]
[1754532256225,0.86839014,770.32,769.61,0.8729925]
[1754532257227,0.86839014,770.36,769.59,1.7689925]
[1754532258230,0.86839014,770.36,769.59,0.896]
[1754532261228,0.86839014,770.37,769.59,0.896]
[1754532262231,0.86839014,770.36,769.59,1.7689925]
[1754532264333,0.86839014,770.36,769.59,0.896]
[1754532265332,0.86839014,770.36,769.59,1.7689925]
[1754532267135,0.86839014,770.33,769.6,0.8729925]
[1754532267333,0.86839014,770.33,769.61,0.8729925]
[1754532269933,0.86839014,770.32,769.6,0.8729925]
[1754532270131,0.86839014,770.33,769.6,0.8729925]
[1754532270335,0.86839014,770.32,769.6,0.8729925]
[1754532270536,0.86839014,770.31,769.59,1.7689925]
[1754532271035,0.86839014,770.31,769.6,0.8729925]
[1754532272133,1.1634231,770.46,769.6,0.8729925]
[1754532272134,0.86839014,770.32,769.6,0.8729925]
[1754532272333,0.86839014,770.31,769.6,0.8729925]
[1754532272539,0.86839014,770.32,769.6,0.8729925]
[1754532273037,0.86839014,770.31,769.6,0.8729925]
[1754532273338,0.86839014,770.32,769.62,0.8729925]
[1754532273739,0.86839014,770.31,769.62,0.8729925]
[1754532274035,0.86839014,770.31,769.63,0.8729925]
[1754532274433,0.86839014,770.3,769.63,0.8729925]
[1754532275234,0.86839014,770.31,769.63,0.8729925]
[1754532275534,0.86839014,770.3,769.64,0.8729925]
[1754532276737,0.86839014,770.3,769.65,0.8729925]
[1754532277238,0.86839014,770.48,769.59,0.896]
[1754532277436,0.86839014,770.54,769.61,0.8729925]
[1754532277634,0.22594762,770.55,769.66,0.8729925]
[1754532277934,0.86839014,770.6,769.66,0.8729925]
[1754532278338,0.86839014,770.59,769.67,0.8729925]
[1754532278540,0.86839014,770.6,769.67,0.8729925]
[1754532279339,0.86839014,770.58,769.66,0.8729925]
[1754532279635,0.86839014,770.47,769.75,0.8729925]
[1754532279839,0.86839014,770.47,769.76,0.8729925]
[1754532280338,0.86839014,770.46,769.76,0.8729925]
[1754532281836,0.86839014,770.45,769.76,0.8729925]
[1754532282241,0.86839014,770.45,769.59,0.896]
[1754532282242,0.86839014,770.44,769.75,0.8729925]
[1754532282938,0.86839014,770.4,769.78,0.8729925]
[1754532283638,0.86839014,770.51,769.67,0.8729925]
[1754532283840,0.86839014,770.53,769.66,0.8729925]
[1754532284937,0.86839014,770.53,769.67,0.8729925]
[1754532285340,0.86839014,770.54,769.66,0.8729925]
[1754532285744,0.86839014,770.52,769.67,0.8729925]
[1754532286341,0.86839014,770.42,769.57,0.8729925]
[1754532286642,0.86839014,770.29,769.53,0.8729925]
[1754532287042,0.86839014,770.26,769.54,0.8729925]
[1754532287342,0.86839014,770.19,769.54,0.935]
[1754532288244,0.86839014,770.2,769.54,0.935]
[1754532289045,0.86839014,770.19,769.54,0.935]
[1754532289349,0.86839014,770.2,769.54,0.935]
[1754532289847,0.86839014,770.21,769.54,0.935]
[1754532290145,0.86839014,770.25,769.54,0.935]
[1754532290346,0.22590435,770.66,769.54,0.935]
[1754532290347,0.86839014,770.27,769.54,0.935]
[1754532291645,0.86839014,770.26,769.54,0.935]
[1754532292546,0.86839014,770.25,769.54,1.8079925]
[1754532292945,0.86839014,770.23,769.54,1.8079925]
[1754532293148,0.86839014,770.23,769.55,0.8729925]
[1754532294349,0.86839014,770.24,769.56,0.8729925]
[1754532294547,0.86839014,770.27,769.59,0.8729925]
[1754532295651,0.86839014,770.28,769.59,0.8729925]
[1754532296950,0.86839014,770.27,769.6,0.8729925]
[1754532298253,0.86839014,770.26,769.6,0.8729925]
[1754532299556,0.86839014,770.46,769.58,0.8729925]
[1754532302755,0.86839014,770.46,769.57,0.8729925]
[1754532305858,0.86839014,770.41,769.6,0.8729925]
[1754532306054,0.86839014,770.41,769.59,0.8729925]
[1754532306358,0.86839014,770.29,769.67,0.8729925]
[1754532306553,0.86839014,770.23,769.61,0.8729925]
[1754532306757,0.86839014,770.22,769.6,0.8729925]
[1754532306958,0.86839014,770.2,769.59,0.8729925]
[1754532307158,0.86839014,770.14,769.54,0.935]
[1754532307356,0.86839014,770.15,769.54,0.935]
[1754532307859,0.86839014,770.14,769.54,0.935]
[1754532308356,0.86839014,770.15,769.54,0.935]
[1754532308560,0.86839014,770.14,769.54,0.935]
[1754532308760,0.86839014,770.11,769.54,0.935]
[1754532309859,0.86839014,770.12,769.54,0.935]
[1754532310355,0.86839014,770.13,769.54,0.935]
[1754532311356,0.86839014,770.14,769.54,0.935]
[1754532312258,0.86839014,770.15,769.54,0.935]
[1754532312859,0.86839014,770.14,769.54,0.935]
[1754532313063,0.86839014,770.15,769.54,0.935]
[1754532313559,0.86839014,770.16,769.54,0.935]
[1754532314163,0.86839014,770.17,769.54,0.935]
[1754532316261,0.86839014,770.16,769.54,0.935]
[1754532316564,0.86839014,770.17,769.54,0.935]
[1754532318666,0.86839014,770.65,769.54,0.935]
[1754532319865,0.22590435,770.66,769.54,0.935]
[1754532320061,0.86761831,770.65,769.54,0.935]
[1754532325571,0.86761831,770.64,769.54,0.935]
[1754532325972,0.86761831,770.6,769.54,0.935]
[1754532326569,0.86761831,770.58,769.54,0.935]
[1754532326773,0.86761831,770.56,769.54,0.935]
[1754532326971,0.86761831,770.53,769.54,0.935]
[1754532327274,0.86761831,770.53,769.45,0.87344132]
[1754532328170,0.86761831,770.36,769.57,0.87344132]
[1754532328370,0.86761831,770.38,769.58,0.87344132]
[1754532328774,0.86761831,770.41,769.61,0.87344132]
[1754532329170,0.86761831,770.41,769.62,0.87344132]
[1754532329375,0.86761831,770.41,769.61,0.87344132]
[1754532329772,0.86761831,770.44,769.65,0.87344132]